Workbook

Sheet Istota ryzyka
B1: Definicja ryzyka
B3: Według współczesnych definicji ryzyko, jako pochodna niepewności, związane jest z możliwością realizacji przyszłych zdarzeń na poziomie odmiennym od oczekiwanego, przy czym znane są potencjalne realizacje tych zdarzeń i prawdopodobieństwo ich wystąpienia. Tak więc ryzyko dla przedsiębiorstwa jest zjawiskiem jak najbardziej kwantyfikowalnym, mającym wymierne konsekwencje dla jego wyników finansowych i możliwe jest zarządzanie nim, natomiast niepewność jest niemierzalna (wpływa na wyniki przedsiębiorstwa ale nie można zmierzyć tego wpływu), co uniemożliwia zarządzanie nią.
B11: Definicja ryzyka może być interpretowana dwojako: możliwość, że coś się nie uda (negatywne ujęcie ryzyka – pogorszenie sytuacji przedsiębiorstwa) lub też przedsięwzięcie, którego wynik nie jest znany (neutralne ujęcie ryzyka – pogorszenie lub polepszenie sytuacji przedsiębiorstwa – określające zagrożenie lub szansę). Pierwsza interpretacja postrzega ryzyko jako zagrożenie, prawdopodobieństwo poniesienia straty, bądź osiągnięcie gorszego rezultatu niż planowany. Ten sposób interpretacji stosuje się najczęściej w ubezpieczeniach. Drugie podejście (neutralne) uznaje ryzyko z jednej strony jako zagrożenie, mogące wpłynąć niekorzystnie na osiąganie przez przedsiębiorstwo wyniki, a z drugiej jako szansę, przy wykorzystaniu której wyniki przedsiębiorstwa mogą ulec poprawie.
B21: Ryzyko jest nieodłącznym elementem każdej działalności gospodarczej przedsiębiorstwa i podejmowanie jakiejkolwiek decyzji w przedsiębiorstwie związane jest ze świadomością jego istnienia i jego akceptacją. Na decyzje te jednak ma wpływ stosunek decydenta do ryzyka. Najczęściej wyróżnia się trzy postawy względem ryzyka:
B25: • awersja do ryzyka,
B26: • neutralność wobec ryzyka,
B27: • skłonność do ryzyka.

Sheet Rodzaje ryzyka
B1: Rodzaje ryzyka
B20: Ryzyko rynkowe związane jest z funkcjonowaniem rynku, z kształtowaniem się popytu i podaży na określone dobra i wpływa na ich zmienność. Może dotyczyć np.: cen surowców, materiałów i usług obcych, cen produktów i towarów, kursów walutowych, cen instrumentów finansowych, poziomu stóp procentowych itp.
B25: Ryzyko kredytowe w typowym przedsiębiorstwie związane jest z udzielonym kredytem kupieckim, czyli odroczoną płatności z tytułu sprzedanych obcym podmiotom towarów, produktów lub usług. Dotyczy niedotrzymania warunków umowy i wydłużenia terminu płatności (należności przeterminowane) lub też w skrajnym przypadku braku możliwości odzyskania wierzytelności (należności nieściągalne).
B31: Ryzyko operacyjne dotyczy błędów i niedociągnięć w organizacji działalności przedsiębiorstwa. Najczęściej odnosi się do tzw. czynnika ludzkiego – błędów czy niedociągnięć w organizacji pracy wynikających z braku umiejętności pracowników, zbyt licznych obowiązków czy też świadomego działania na szkodę firmy. Również wady i uszkodzenia procesów technologicznych stanowią realne zagrożenie i mogą powodować przerwy w prawidłowym funkcjonowaniu przedsiębiorstwa, prowadząc do strat finansowych. Do tej grupy ryzyka zaliczane są także wszelkiego rodzaju działania zewnętrzne (klęski żywiołowe, terroryzm, czyny zabronione przez prawo) zakłócające działalność i mogące wpłynąć na wyniki. W obszarze ryzyka operacyjnego umieścić też można wykorzystanie w procesach decyzyjnych modeli błędnie lub nieprecyzyjnie opisujących rzeczywistość. Niewłaściwie zastosowany model wyceny czy też sprawozdania finansowe innych przedsiębiorstw, poddane manipulacji księgowych, nie oddające rzeczywistej sytuacji przedsiębiorstwa a traktowane jako wiarygodne, mogą doprowadzić do podjęcia wielu błędnych decyzji. Do zagrożeń związanych z ryzykiem operacyjnym zaliczane są czasem także błędne decyzje zarządcze na poziomie strategicznego planowania (np. niewystarczająca dywersyfikacja działalności itp.) oraz ryzyko reputacji związane w możliwości utraty zaufania klientów i kontrahentów.
B48: Źródłem ryzyka biznesowego jest działanie przedsiębiorstwa w warunkach konkurencyjności. Istnienie konkurencji powoduje wahania popytu, co przekłada się na zmienność wyników. Innym zagrożeniem jest rozwój nowych technologii, wymuszających usprawnianie istniejących lub wprowadzanie nowych produktów a niedostosowanie się grozi utratą dotychczasowego udziału w rynku.
B54: Ryzyko prawne związane jest ze zmiennością i niejasnością przepisów prawa. Występuje w przypadku uchwalenia aktów prawnych mających wpływ na obecną sytuację lub dalsze funkcjonowanie danego podmiotu gospodarczego lub też w przypadku niekorzystnych efektów prawnych w zawartych przez podmiot umowach. Niektórzy zaliczają całość lub część ryzyka prawnego do ryzyka operacyjnego.

Sheet Etapy zarządzania ryzykiem
B1: Etapy zarządzania ryzykiem
B3: Zarządzanie ryzykiem przedsiębiorstwa najczęściej rozumiane jest jako podejmowanie decyzji oraz realizacja działań prowadzących do optymalizacji ryzyka, czyli w przypadku zagrożeń oznaczają jego ograniczanie, natomiast w przypadku pojawiających się możliwości zwiększenia korzyści oznaczają akceptację danego poziomu ryzyka. Zarządzanie ryzykiem nie polega więc tylko na jego unikaniu, ale także na wykorzystaniu wiedzy i umiejętności do jego oszacowania oraz uzyskania przy nim optymalnego dochodu. Proces zarządzania ryzykiem powinien na stałe być wkomponowany w procesy zarządzania przedsiębiorstwem. Powinien składać się z takich etapów jak: identyfikacja, pomiar, sterowanie ryzykiem a także z monitorowanie i kontrola ryzyka.
B29: Zarządzanie ryzykiem nie jest procesem jednorazowym, w którym kolejne etapy następują po sobie i proces ulega zakończeniu. Jest to proces ciągły składający się z następujących po sobie etapów powiązanych sprzężeniami zwrotnymi.

Sheet Pomiar ryzyka (zmienności)
B1: Pomiar ryzyka w oparciu o obserwacje historyczne:
B3: i | C3: xi | D3: xi-E(x) | E3: [xi-E(x)]^2
B4: 1 | C4: 60 | D4: =C4-$C$10 -> 10 | E4: =D4^2 -> 100
B5: 2 | C5: 50 | D5: =C5-$C$10 -> 0 | E5: =D5^2 -> 0
B6: 3 | C6: 40 | D6: =C6-$C$10 -> -10 | E6: =D6^2 -> 100
B7: 4 | C7: 55 | D7: =C7-$C$10 -> 5 | E7: =D7^2 -> 25
B8: 5 | C8: 45 | D8: =C8-$C$10 -> -5 | E8: =D8^2 -> 25
C9: =SUM(C4:C8) -> 250 | E9: =SUM(E4:E8) -> 250
C10: =C9/5 -> 50 | E10: =E9/4 -> 62.5
E11: =E10^0.5 -> 7.90569415
E13: =E11/C10 -> 0.158113883
B16: Pomiar ryzyka w oparciu o scenariusze:
B17: pi | C17: xi | D17: pi * xi | E17: xi-E(x) | F17: [xi-E(x)]^2 | G17: pi*[xi-E(x)]^2
B18: 0.1 | C18: 0 | D18: =B18*C18 -> 0 | E18: =C18-$D$23 -> -51 | F18: =E18^2 -> 2601 | G18: =F18*B18 -> 260.1
B19: 0.25 | C19: 30 | D19: =B19*C19 -> 7.5 | E19: =C19-$D$23 -> -21 | F19: =E19^2 -> 441 | G19: =F19*B19 -> 110.25
B20: 0.3 | C20: 45 | D20: =B20*C20 -> 13.5 | E20: =C20-$D$23 -> -6 | F20: =E20^2 -> 36 | G20: =F20*B20 -> 10.8
B21: 0.2 | C21: 75 | D21: =B21*C21 -> 15 | E21: =C21-$D$23 -> 24 | F21: =E21^2 -> 576 | G21: =F21*B21 -> 115.2
B22: 0.15 | C22: 100 | D22: =B22*C22 -> 15 | E22: =C22-$D$23 -> 49 | F22: =E22^2 -> 2401 | G22: =F22*B22 -> 360.15
B23: =SUM(B18:B22) -> 1 | D23: =SUM(D18:D22) -> 51 | G23: =SUM(G18:G22) -> 856.5
G24: =G23^0.5 -> 29.26602125
G26: =G24/D23 -> 0.573843554
B30: Pomiar większej zmienności:
C31: E(x) | D31: Sx | E31: CVx
B32: A | C32: 1000 | D32: 100 | E32: =D32/C32 -> 0.1
B33: B | C33: 100000 | D33: 5000 | E33: =D33/C33 -> 0.05

Sheet Miary zmienności
C1: A | I1: B | AB1: średnia | AC1: +odch.standardowe | AD1: -odch.standardowe | AE1: +odchylenie średnie | AF1: -odchylenie średnie | AG1: min | AH1: Q1 | AI1: mediana | AJ1: Q3 | AK1: max
A2: 1 | C2: 105 | I2: 116 | AA2: 1 | AB2: =$C$23 -> 107 | AC2: =$AB2+$C$24 -> 113.3162281 | AD2: =$AB2-$C$24 -> 100.6837719 | AE2: =$AB2+$C$25 -> 112.3 | AF2: =$AB2-$C$25 -> 101.7 | AG2: =$C$29 -> 96 | AH2: =$C$30 -> 102 | AI2: =$C$31 -> 107 | AJ2: =$C$32 -> 112.25 | AK2: =$C$33 -> 117
A3: 2 | C3: 101 | I3: 101 | AA3: 2 | AB3: =$C$23 -> 107 | AC3: =AB3+$C$24 -> 113.3162281 | AD3: =$AB3-$C$24 -> 100.6837719 | AE3: =$AB3+$C$25 -> 112.3 | AF3: =$AB3-$C$25 -> 101.7 | AG3: =$C$29 -> 96 | AH3: =$C$30 -> 102 | AI3: =$C$31 -> 107 | AJ3: =$C$32 -> 112.25 | AK3: =$C$33 -> 117
A4: 3 | C4: 117 | I4: 107 | AA4: 3 | AB4: 107 | AC4: 113.3162281 | AD4: 100.6837719 | AE4: 112.3 | AF4: 101.7 | AG4: 96 | AH4: 102 | AI4: 107 | AJ4: 112.25 | AK4: 117
A5: 4 | C5: 113 | I5: 103 | AA5: 4 | AB5: 107 | AC5: 113.3162281 | AD5: 100.6837719 | AE5: 112.3 | AF5: 101.7 | AG5: 96 | AH5: 102 | AI5: 107 | AJ5: 112.25 | AK5: 117
A6: 5 | C6: 113 | I6: 66 | AA6: 5 | AB6: 107 | AC6: 113.3162281 | AD6: 100.6837719 | AE6: 112.3 | AF6: 101.7 | AG6: 96 | AH6: 102 | AI6: 107 | AJ6: 112.25 | AK6: 117
A7: 6 | C7: 116 | I7: 88 | AA7: 6 | AB7: 107 | AC7: 113.3162281 | AD7: 100.6837719 | AE7: 112.3 | AF7: 101.7 | AG7: 96 | AH7: 102 | AI7: 107 | AJ7: 112.25 | AK7: 117
A8: 7 | C8: 96 | I8: 133 | AA8: 7 | AB8: 107 | AC8: 113.3162281 | AD8: 100.6837719 | AE8: 112.3 | AF8: 101.7 | AG8: 96 | AH8: 102 | AI8: 107 | AJ8: 112.25 | AK8: 117
A9: 8 | C9: 106 | I9: 110 | AA9: 8 | AB9: 107 | AC9: 113.3162281 | AD9: 100.6837719 | AE9: 112.3 | AF9: 101.7 | AG9: 96 | AH9: 102 | AI9: 107 | AJ9: 112.25 | AK9: 117
A10: 9 | C10: 112 | I10: 126 | AA10: 9 | AB10: 107 | AC10: 113.3162281 | AD10: 100.6837719 | AE10: 112.3 | AF10: 101.7 | AG10: 96 | AH10: 102 | AI10: 107 | AJ10: 112.25 | AK10: 117
A11: 10 | C11: 102 | I11: 93 | AA11: 10 | AB11: 107 | AC11: 113.3162281 | AD11: 100.6837719 | AE11: 112.3 | AF11: 101.7 | AG11: 96 | AH11: 102 | AI11: 107 | AJ11: 112.25 | AK11: 117
A12: 11 | C12: 110 | I12: 73 | AA12: 11 | AB12: 107 | AC12: 113.3162281 | AD12: 100.6837719 | AE12: 112.3 | AF12: 101.7 | AG12: 96 | AH12: 102 | AI12: 107 | AJ12: 112.25 | AK12: 117
A13: 12 | C13: 99 | I13: 145 | AA13: 12 | AB13: 107 | AC13: 113.3162281 | AD13: 100.6837719 | AE13: 112.3 | AF13: 101.7 | AG13: 96 | AH13: 102 | AI13: 107 | AJ13: 112.25 | AK13: 117
A14: 13 | C14: 112 | I14: 117 | AA14: 13 | AB14: 107 | AC14: 113.3162281 | AD14: 100.6837719 | AE14: 112.3 | AF14: 101.7 | AG14: 96 | AH14: 102 | AI14: 107 | AJ14: 112.25 | AK14: 117
A15: 14 | C15: 102 | I15: 99 | AA15: 14 | AB15: 107 | AC15: 113.3162281 | AD15: 100.6837719 | AE15: 112.3 | AF15: 101.7 | AG15: 96 | AH15: 102 | AI15: 107 | AJ15: 112.25 | AK15: 117
A16: 15 | C16: 113 | I16: 118 | AA16: 15 | AB16: 107 | AC16: 113.3162281 | AD16: 100.6837719 | AE16: 112.3 | AF16: 101.7 | AG16: 96 | AH16: 102 | AI16: 107 | AJ16: 112.25 | AK16: 117
A17: 16 | C17: 96 | I17: 67 | AA17: 16 | AB17: 107 | AC17: 113.3162281 | AD17: 100.6837719 | AE17: 112.3 | AF17: 101.7 | AG17: 96 | AH17: 102 | AI17: 107 | AJ17: 112.25 | AK17: 117
A18: 17 | C18: 109 | I18: 141 | AA18: 17 | AB18: 107 | AC18: 113.3162281 | AD18: 100.6837719 | AE18: 112.3 | AF18: 101.7 | AG18: 96 | AH18: 102 | AI18: 107 | AJ18: 112.25 | AK18: 117
A19: 18 | C19: 105 | I19: 57 | AA19: 18 | AB19: 107 | AC19: 113.3162281 | AD19: 100.6837719 | AE19: 112.3 | AF19: 101.7 | AG19: 96 | AH19: 102 | AI19: 107 | AJ19: 112.25 | AK19: 117
A20: 19 | C20: 108 | I20: 94 | AA20: 19 | AB20: 107 | AC20: 113.3162281 | AD20: 100.6837719 | AE20: 112.3 | AF20: 101.7 | AG20: 96 | AH20: 102 | AI20: 107 | AJ20: 112.25 | AK20: 117
A21: 20 | C21: 105 | I21: 186 | AA21: 20 | AB21: 107 | AC21: 113.3162281 | AD21: 100.6837719 | AE21: 112.3 | AF21: 101.7 | AG21: 96 | AH21: 102 | AI21: 107 | AJ21: 112.25 | AK21: 117
A23: średnia | C23: =AVERAGE(C2:C21) -> 107 | I23: =AVERAGE(I2:I21) -> 107 | AB23: średnia | AC23: +odch.standardowe | AD23: -odch.standardowe | AE23: +odchylenie średnie | AF23: -odchylenie średnie | AG23: min | AH23: Q1 | AI23: mediana | AJ23: Q3 | AK23: max
A24: odch.standardowe | C24: =STDEV(C2:C21) -> 6.316228055 | I24: =STDEV(I2:I21) -> 30.75197897 | AA24: 1 | AB24: =$I$23 -> 107 | AC24: =$AB24+$I$24 -> 137.751979 | AD24: =$AB24-$I$24 -> 76.24802103 | AE24: =$AB24+$I$25 -> 129.9 | AF24: =$AB24-$I$25 -> 84.1 | AG24: =$I$29 -> 57 | AH24: =$I$30 -> 91.75 | AI24: =$I$31 -> 105 | AJ24: =$I$32 -> 120 | AK24: =$I$33 -> 186
A25: odchylenie średnie | C25: =AVEDEV(C2:C21) -> 5.3 | I25: =AVEDEV(I2:I21) -> 22.9 | AA25: 2 | AB25: =$I$23 -> 107 | AC25: =$AB25+$I$24 -> 137.751979 | AD25: =$AB25-$I$24 -> 76.24802103 | AE25: =$AB25+$I$25 -> 129.9 | AF25: =$AB25-$I$25 -> 84.1 | AG25: =$I$29 -> 57 | AH25: =$I$30 -> 91.75 | AI25: =$I$31 -> 105 | AJ25: =$I$32 -> 120 | AK25: =$I$33 -> 186
AA26: 3 | AB26: 107 | AC26: 137.751979 | AD26: 76.24802103 | AE26: 129.9 | AF26: 84.1 | AG26: 57 | AH26: 91.75 | AI26: 105 | AJ26: 120 | AK26: 186
A27: współcz. zmienności | C27: =C24/C23 -> 0.05903016874 | I27: =I24/I23 -> 0.2874016726 | AA27: 4 | AB27: 107 | AC27: 137.751979 | AD27: 76.24802103 | AE27: 129.9 | AF27: 84.1 | AG27: 57 | AH27: 91.75 | AI27: 105 | AJ27: 120 | AK27: 186
AA28: 5 | AB28: 107 | AC28: 137.751979 | AD28: 76.24802103 | AE28: 129.9 | AF28: 84.1 | AG28: 57 | AH28: 91.75 | AI28: 105 | AJ28: 120 | AK28: 186
A29: min | C29: =QUARTILE(C$2:C$21,0) -> 96 | I29: =QUARTILE(I$2:I$21,0) -> 57 | AA29: 6 | AB29: 107 | AC29: 137.751979 | AD29: 76.24802103 | AE29: 129.9 | AF29: 84.1 | AG29: 57 | AH29: 91.75 | AI29: 105 | AJ29: 120 | AK29: 186
A30: Q1 | C30: =QUARTILE(C$2:C$21,1) -> 102 | I30: =QUARTILE(I$2:I$21,1) -> 91.75 | AA30: 7 | AB30: 107 | AC30: 137.751979 | AD30: 76.24802103 | AE30: 129.9 | AF30: 84.1 | AG30: 57 | AH30: 91.75 | AI30: 105 | AJ30: 120 | AK30: 186
A31: mediana | C31: =QUARTILE(C$2:C$21,2) -> 107 | I31: =QUARTILE(I$2:I$21,2) -> 105 | AA31: 8 | AB31: 107 | AC31: 137.751979 | AD31: 76.24802103 | AE31: 129.9 | AF31: 84.1 | AG31: 57 | AH31: 91.75 | AI31: 105 | AJ31: 120 | AK31: 186
A32: Q3 | C32: =QUARTILE(C$2:C$21,3) -> 112.25 | I32: =QUARTILE(I$2:I$21,3) -> 120 | AA32: 9 | AB32: 107 | AC32: 137.751979 | AD32: 76.24802103 | AE32: 129.9 | AF32: 84.1 | AG32: 57 | AH32: 91.75 | AI32: 105 | AJ32: 120 | AK32: 186
A33: max | C33: =QUARTILE(C$2:C$21,4) -> 117 | I33: =QUARTILE(I$2:I$21,4) -> 186 | AA33: 10 | AB33: 107 | AC33: 137.751979 | AD33: 76.24802103 | AE33: 129.9 | AF33: 84.1 | AG33: 57 | AH33: 91.75 | AI33: 105 | AJ33: 120 | AK33: 186
AA34: 11 | AB34: 107 | AC34: 137.751979 | AD34: 76.24802103 | AE34: 129.9 | AF34: 84.1 | AG34: 57 | AH34: 91.75 | AI34: 105 | AJ34: 120 | AK34: 186
AA35: 12 | AB35: 107 | AC35: 137.751979 | AD35: 76.24802103 | AE35: 129.9 | AF35: 84.1 | AG35: 57 | AH35: 91.75 | AI35: 105 | AJ35: 120 | AK35: 186
AA36: 13 | AB36: 107 | AC36: 137.751979 | AD36: 76.24802103 | AE36: 129.9 | AF36: 84.1 | AG36: 57 | AH36: 91.75 | AI36: 105 | AJ36: 120 | AK36: 186
AA37: 14 | AB37: 107 | AC37: 137.751979 | AD37: 76.24802103 | AE37: 129.9 | AF37: 84.1 | AG37: 57 | AH37: 91.75 | AI37: 105 | AJ37: 120 | AK37: 186
AA38: 15 | AB38: 107 | AC38: 137.751979 | AD38: 76.24802103 | AE38: 129.9 | AF38: 84.1 | AG38: 57 | AH38: 91.75 | AI38: 105 | AJ38: 120 | AK38: 186
AA39: 16 | AB39: 107 | AC39: 137.751979 | AD39: 76.24802103 | AE39: 129.9 | AF39: 84.1 | AG39: 57 | AH39: 91.75 | AI39: 105 | AJ39: 120 | AK39: 186
AA40: 17 | AB40: 107 | AC40: 137.751979 | AD40: 76.24802103 | AE40: 129.9 | AF40: 84.1 | AG40: 57 | AH40: 91.75 | AI40: 105 | AJ40: 120 | AK40: 186
AA41: 18 | AB41: 107 | AC41: 137.751979 | AD41: 76.24802103 | AE41: 129.9 | AF41: 84.1 | AG41: 57 | AH41: 91.75 | AI41: 105 | AJ41: 120 | AK41: 186
AA42: 19 | AB42: 107 | AC42: 137.751979 | AD42: 76.24802103 | AE42: 129.9 | AF42: 84.1 | AG42: 57 | AH42: 91.75 | AI42: 105 | AJ42: 120 | AK42: 186
AA43: 20 | AB43: 107 | AC43: 137.751979 | AD43: 76.24802103 | AE43: 129.9 | AF43: 84.1 | AG43: 57 | AH43: 91.75 | AI43: 105 | AJ43: 120 | AK43: 186

Sheet Rozkład normalny
AG2: A | AI2: RN A
AL3: x | AM3: y
AF4: 1 | AG4: =AC22-4*AC25 -> -0.4 | AI4: =NORMDIST(AG4,$AC$22,$AC$25,0) -> 0.001338302258 | AL4: =AC22 -> 0 | AM4: 0
AF5: 2 | AG5: =AG4+(AG$14-AG$4)/10 -> -0.36 | AI5: 0.006119019301 | AL5: =AC22 -> 0 | AM5: =NORMDIST(AL5,$AC$22,$AC$25,0) -> 3.989422804
AA6: E(x) +/- 1s(x) | AB6: => | AC6: =1-2*NORMDIST($AC$22-(1*$AC$25),$AC$22,$AC$25,1) -> 0.6826894921 | AF6: 3 | AG6: -0.32 | AI6: 0.02384088201
AA7: E(x) +/- 2s(x) | AB7: => | AC7: =1-2*NORMDIST($AC$22-(2*$AC$25),$AC$22,$AC$25,1) -> 0.9544997361 | AF7: 4 | AG7: -0.28 | AI7: 0.07915451583 | AL7: =AA12 -> -0.088 | AM7: 0
AA8: E(x) +/- 3s(x) | AB8: => | AC8: =1-2*NORMDIST($AC$22-(3*$AC$25),$AC$22,$AC$25,1) -> 0.9973002039 | AF8: 5 | AG8: -0.24 | AI8: 0.2239453029 | AL8: =AA12 -> -0.088 | AM8: =NORMDIST(AL8,$AC$22,$AC$25,0) -> 2.708639718
AF9: 6 | AG9: -0.2 | AI9: 0.5399096651
AF10: 7 | AG10: -0.16 | AI10: 1.109208347
AA11: xi | AC11: p (x > xi) | AF11: 8 | AG11: -0.12 | AI11: 1.94186055
AA12: =AC15/1000-0.5 -> -0.088 | AC12: =1-NORMDIST(AA12,AC22,AC25,1) -> 0.8105703452 | AF12: 9 | AG12: -0.08 | AI12: 2.896915528
AF13: 10 | AG13: -0.04 | AI13: 3.682701403
AF14: 11 | AG14: =AC22 -> 0 | AI14: 3.989422804
AC15: 412 | AF15: 12 | AG15: =AG14+(AG$24-AG$14)/10 -> 0.04 | AI15: 3.682701403
AC16: 50 | AF16: 13 | AG16: 0.08 | AI16: 2.896915528
AC17: 60 | AF17: 14 | AG17: 0.12 | AI17: 1.94186055
AF18: 15 | AG18: 0.16 | AI18: 1.109208347
AF19: 16 | AG19: 0.2 | AI19: 0.5399096651
AF20: 17 | AG20: 0.24 | AI20: 0.2239453029
AC21: E(x) | AF21: 18 | AG21: 0.28 | AI21: 0.07915451583
AC22: =AC16/100-0.5 -> 0 | AF22: 19 | AG22: 0.32 | AI22: 0.02384088201
AF23: 20 | AG23: 0.36 | AI23: 0.006119019301
AC24: s(x) | AF24: 21 | AG24: =AC22+4*AC25 -> 0.4 | AI24: 0.001338302258
AC25: =AC17/100-0.5 -> 0.1

Sheet Value at Risk
AG2: A | AI2: RN A
AL3: x | AM3: y
AF4: 1 | AG4: =AC22-4*AC25 -> -0.04 | AI4: =NORMDIST(AG4,$AC$22,$AC$25,0) -> 0.01338302258 | AL4: =AC22 -> 0 | AM4: 0
AF5: 2 | AG5: =AG4+(AG$14-AG$4)/10 -> -0.036 | AI5: 0.06119019301 | AL5: =AC22 -> 0 | AM5: =NORMDIST(AL5,$AC$22,$AC$25,0) -> 39.89422804
AA6: E(x) +/- 1s(x) | AB6: => | AC6: =1-2*NORMDIST($AC$22-(1*$AC$25),$AC$22,$AC$25,1) -> 0.6826894921 | AF6: 3 | AG6: -0.032 | AI6: 0.2384088201
AA7: E(x) +/- 2s(x) | AB7: => | AC7: =1-2*NORMDIST($AC$22-(2*$AC$25),$AC$22,$AC$25,1) -> 0.9544997361 | AF7: 4 | AG7: -0.028 | AI7: 0.7915451583 | AL7: =AC12 -> -0.01750686071 | AM7: 0
AA8: E(x) +/- 3s(x) | AB8: => | AC8: =1-2*NORMDIST($AC$22-(3*$AC$25),$AC$22,$AC$25,1) -> 0.9973002039 | AF8: 5 | AG8: -0.024 | AI8: 2.239453029 | AL8: =AC12 -> -0.01750686071 | AM8: =NORMDIST(AL8,$AC$22,$AC$25,0) -> 8.617377403
AF9: 6 | AG9: -0.02 | AI9: 5.399096651
AF10: 7 | AG10: -0.016 | AI10: 11.09208347
AA11: α | AC11: Wα | AF11: 8 | AG11: -0.012 | AI11: 19.4186055
AA12: =AC18/100 -> 0.04 | AC12: =NORMINV(AA12,AC22,AC25) -> -0.01750686071 | AF12: 9 | AG12: -0.008 | AI12: 28.96915528
AF13: 10 | AG13: -0.004 | AI13: 36.82701403
AF14: 11 | AG14: =AC22 -> 0 | AI14: 39.89422804
AF15: 12 | AG15: =AG14+(AG$24-AG$14)/10 -> 0.004 | AI15: 36.82701403
AC16: 50 | AF16: 13 | AG16: 0.008 | AI16: 28.96915528
AC17: 51 | AF17: 14 | AG17: 0.012 | AI17: 19.4186055
AC18: 4 | AF18: 15 | AG18: 0.016 | AI18: 11.09208347
AF19: 16 | AG19: 0.02 | AI19: 5.399096651
AF20: 17 | AG20: 0.024 | AI20: 2.239453029
AC21: E(x) | AF21: 18 | AG21: 0.028 | AI21: 0.7915451583
AC22: =AC16/100-0.5 -> 0 | AF22: 19 | AG22: 0.032 | AI22: 0.2384088201
AF23: 20 | AG23: 0.036 | AI23: 0.06119019301
AC24: s(x) | AF24: 21 | AG24: =AC22+4*AC25 -> 0.04 | AI24: 0.01338302258
AC25: =AC17/100-0.5 -> 0.01
AD27: =IF(AC22=0,"",AC25/AC22/100) -> 

Sheet 3 rozkłady
B2: nr | C2: r. jednostajny (A) | D2: r. normalny (B) | E2: r. (A) lub (B) | G2: nr | H2: r. jednostajny (A) | I2: r. normalny (B) | J2: r. (A) lub (B) | M2: =H2 -> r. jednostajny (A) | N2: =I2 -> r. normalny (B) | O2: r. jed. lub r.nor. | AA2: -200 | AB2: =FREQUENCY(C$3:C$1002,$AA$2:$AA$18) -> 0 | AC2: =FREQUENCY(D$3:D$1002,$AA$2:$AA$18) -> 0 | AD2: =FREQUENCY(E$3:E$1002,$AA$2:$AA$18) -> 0
B3: 1 | C3: =ROUND(RAND()*1000,0) -> 828 | D3: =ROUND(_xlfn.NORM.INV(RAND(),500,150),0) -> 517 | E3: =IF(RAND()<=0.5,ROUND(RAND()*1000,0),ROUND(_xlfn.NORM.INV(RAND(),500,150),0)) -> 667 | G3: 1 | H3: =SMALL(C$3:C$1002,$G3) -> 0 | I3: =SMALL(D$3:D$1002,$G3) -> 8 | J3: =SMALL(E$3:E$1002,$G3) -> 5 | L3: średnia | M3: =AVERAGE(C$3:C$1002) -> 499.684 | N3: =AVERAGE(D$3:D$1002) -> 506.45 | O3: =AVERAGE(E$3:E$1002) -> 491.501 | AA3: -100 | AB3: 0 | AC3: 0 | AD3: 0
B4: 2 | C4: 395 | D4: 549 | E4: 468 | G4: 2 | H4: =SMALL(C$3:C$1002,$G4) -> 3 | I4: =SMALL(D$3:D$1002,$G4) -> 48 | J4: 6 | L4: wariancja | M4: =VAR(C$3:C$1002) -> 84044.67081 | N4: =VAR(D$3:D$1002) -> 22883.69119 | O4: =VAR(E$3:E$1002) -> 52435.95595 | AA4: 0 | AB4: 1 | AC4: 0 | AD4: 0
B5: 3 | C5: 69 | D5: 469 | E5: 582 | G5: 3 | H5: 3 | I5: 96 | J5: 6 | L5: o.stand. | M5: =STDEV(C$3:C$1002) -> 289.9045892 | N5: =STDEV(D$3:D$1002) -> 151.2735641 | O5: =STDEV(E$3:E$1002) -> 228.9889865 | AA5: 100 | AB5: 105 | AC5: 3 | AD5: 51
B6: 4 | C6: 148 | D6: 516 | E6: 183 | G6: 4 | H6: 4 | I6: 123 | J6: 8 | L6: asymetria | M6: =SKEW(C$3:C$1002) -> 0.0208604931 | N6: =SKEW(D$3:D$1002) -> 0.08359252301 | O6: =SKEW(E$3:E$1002) -> 0.0898826925 | AA6: 200 | AB6: 92 | AC6: 18 | AD6: 64
B7: 5 | C7: 948 | D7: 471 | E7: 407 | G7: 5 | H7: 5 | I7: 125 | J7: 9 | L7: kurtoza | M7: =KURT(C$3:C$1002) -> -1.222959785 | N7: =KURT(D$3:D$1002) -> 0.07119680232 | O7: =KURT(E$3:E$1002) -> -0.3726591078 | AA7: 300 | AB7: 107 | AC7: 62 | AD7: 86
B8: 6 | C8: 781 | D8: 536 | E8: 680 | G8: 6 | H8: 12 | I8: 129 | J8: 9 | M8: =M$2 -> r. jednostajny (A) | N8: =N$2 -> r. normalny (B) | O8: =O$2 -> r. jed. lub r.nor. | AA8: 400 | AB8: 92 | AC8: 154 | AD8: 129
B9: 7 | C9: 482 | D9: 260 | E9: 335 | G9: 7 | H9: 12 | I9: 140 | J9: 12 | L9: semiwariancja + | M9: =SUMPRODUCT((C$3:C$1002-AVERAGE(C$3:C$1002))^2,--(C$3:C$1002>=AVERAGE(C$3:C$1002)))/(COUNT(C$3:C$1002)-1) -> 42456.31545 | N9: =SUMPRODUCT((D$3:D$1002-AVERAGE(D$3:D$1002))^2,--(D$3:D$1002>=AVERAGE(D$3:D$1002)))/(COUNT(D$3:D$1002)-1) -> 11716.97971 | O9: =SUMPRODUCT((E$3:E$1002-AVERAGE(E$3:E$1002))^2,--(E$3:E$1002>=AVERAGE(E$3:E$1002)))/(COUNT(E$3:E$1002)-1) -> 26883.12687 | AA9: 500 | AB9: 114 | AC9: 257 | AD9: 189
B10: 8 | C10: 281 | D10: 859 | E10: 873 | G10: 8 | H10: 13 | I10: 140 | J10: 12 | L10: semiwariancja - | M10: =SUMPRODUCT((C$3:C$1002-AVERAGE(C$3:C$1002))^2,--(C$3:C$1002<AVERAGE(C$3:C$1002)))/(COUNT(C$3:C$1002)-1) -> 41588.35537 | N10: =SUMPRODUCT((D$3:D$1002-AVERAGE(D$3:D$1002))^2,--(D$3:D$1002<AVERAGE(D$3:D$1002)))/(COUNT(D$3:D$1002)-1) -> 11166.71148 | O10: =SUMPRODUCT((E$3:E$1002-AVERAGE(E$3:E$1002))^2,--(E$3:E$1002<AVERAGE(E$3:E$1002)))/(COUNT(E$3:E$1002)-1) -> 25552.82909 | AA10: 600 | AB10: 103 | AC10: 248 | AD10: 192
B11: 9 | C11: 583 | D11: 668 | E11: 785 | G11: 9 | H11: 14 | I11: 156 | J11: 16 | M11: =SUM(M9:M10) -> 84044.67081 | N11: =SUM(N9:N10) -> 22883.69119 | O11: =SUM(O9:O10) -> 52435.95595 | AA11: 700 | AB11: 86 | AC11: 163 | AD11: 117
B12: 10 | C12: 364 | D12: 823 | E12: 973 | G12: 10 | H12: 14 | I12: 163 | J12: 17 | M12: =M$2 -> r. jednostajny (A) | N12: =N$2 -> r. normalny (B) | O12: =O$2 -> r. jed. lub r.nor. | AA12: 800 | AB12: 86 | AC12: 59 | AD12: 67
B13: 11 | C13: 820 | D13: 536 | E13: 866 | G13: 11 | H13: 15 | I13: 171 | J13: 19 | L13: semio.stand + | M13: =M9^0.5 -> 206.0493034 | N13: 108.2449986 | O13: 163.960748 | AA13: 900 | AB13: 114 | AC13: 32 | AD13: 49
B14: 12 | C14: 456 | D14: 562 | E14: 545 | G14: 12 | H14: 16 | I14: 178 | J14: 20 | L14: semio.stand - | M14: 203.9322323 | N14: 105.6726619 | O14: 159.8525229 | AA14: 1000 | AB14: 100 | AC14: 3 | AD14: 56
B15: 13 | C15: 586 | D15: 745 | E15: 666 | G15: 13 | H15: 16 | I15: 178 | J15: 20 | M15: =(M13^2+M14^2)^0.5 -> 289.9045892 | N15: =(N13^2+N14^2)^0.5 -> 151.2735641 | O15: =(O13^2+O14^2)^0.5 -> 228.9889865 | AA15: 1100 | AB15: 0 | AC15: 1 | AD15: 0
B16: 14 | C16: 365 | D16: 697 | E16: 324 | G16: 14 | H16: 18 | I16: 180 | J16: 26 | M16: =M$2 -> r. jednostajny (A) | N16: =N$2 -> r. normalny (B) | O16: =O$2 -> r. jed. lub r.nor. | AA16: 1200 | AB16: 0 | AC16: 0 | AD16: 0
B17: 15 | C17: 650 | D17: 244 | E17: 520 | G17: 15 | H17: 20 | I17: 185 | J17: 26 | L17: o.przeciętne | M17: =AVEDEV(C$3:C$1002) -> 250.253048 | N17: =AVEDEV(D$3:D$1002) -> 119.6943 | O17: =AVEDEV(E$3:E$1002) -> 181.257 | AA17: 1300 | AB17: 0 | AC17: 0 | AD17: 0
B18: 16 | C18: 183 | D18: 578 | E18: 462 | G18: 16 | H18: 21 | I18: 186 | J18: 36 | AA18: 1400 | AB18: 0 | AC18: 0 | AD18: 0
B19: 17 | C19: 969 | D19: 236 | E19: 805 | G19: 17 | H19: 21 | I19: 187 | J19: 39 | M19: =M$2 -> r. jednostajny (A) | N19: =N$2 -> r. normalny (B) | O19: =O$2 -> r. jed. lub r.nor.
B20: 18 | C20: 866 | D20: 318 | E20: 571 | G20: 18 | H20: 22 | I20: 189 | J20: 40 | L20: kwartyl 0 (min) | M20: =QUARTILE(C$3:C$1002,0) -> 0 | N20: =QUARTILE(D$3:D$1002,0) -> 8 | O20: 5
B21: 19 | C21: 317 | D21: 638 | E21: 310 | G21: 19 | H21: 23 | I21: 189 | J21: 42 | L21: kwartyl 1 | M21: =QUARTILE(C$3:C$1002,1) -> 241.75 | N21: =QUARTILE(D$3:D$1002,1) -> 407 | O21: 341.75
B22: 20 | C22: 663 | D22: 573 | E22: 394 | G22: 20 | H22: 24 | I22: 195 | J22: 42 | L22: kwartyl 2 (mediana) | M22: =QUARTILE(C$3:C$1002,2) -> 490 | N22: =QUARTILE(D$3:D$1002,2) -> 502.5 | O22: 492
B23: 21 | C23: 806 | D23: 484 | E23: 107 | G23: 21 | H23: 24 | I23: 195 | J23: 43 | L23: kwartyl 3 | M23: =QUARTILE(C$3:C$1002,3) -> 769.75 | N23: =QUARTILE(D$3:D$1002,3) -> 605.5 | O23: 636
B24: 22 | C24: 852 | D24: 489 | E24: 516 | G24: 22 | H24: 24 | I24: 204 | J24: 43 | L24: kwartyl 4 (max) | M24: =QUARTILE(C$3:C$1002,4) -> 999 | N24: =QUARTILE(D$3:D$1002,4) -> 1035 | O24: 1000
B25: 23 | C25: 525 | D25: 271 | E25: 113 | G25: 23 | H25: 25 | I25: 209 | J25: 45 | M25: =M$2 -> r. jednostajny (A) | N25: =N$2 -> r. normalny (B) | O25: =O$2 -> r. jed. lub r.nor.
B26: 24 | C26: 143 | D26: 631 | E26: 408 | G26: 24 | H26: 25 | I26: 213 | J26: 48 | L26: rozstęp | M26: =M24-M20 -> 999 | N26: =N24-N20 -> 1027 | O26: =O24-O20 -> 995
B27: 25 | C27: 766 | D27: 508 | E27: 139 | G27: 25 | H27: 26 | I27: 213 | J27: 51
B28: 26 | C28: 567 | D28: 527 | E28: 745 | G28: 26 | H28: 28 | I28: 215 | J28: 51 | L28: n kw1 | M28: =FREQUENCY($C3:$C1002,$M21:$M24) -> 250 | N28: =FREQUENCY($D3:$D1002,$N21:$N24) -> 252 | O28: =FREQUENCY($E3:$E1002,$O21:$O24) -> 250
B29: 27 | C29: 887 | D29: 574 | E29: 940 | G29: 27 | H29: 28 | I29: 222 | J29: 52 | L29: n kw2 | M29: 251 | N29: 248 | O29: 250
B30: 28 | C30: 985 | D30: 387 | E30: 495 | G30: 28 | H30: 31 | I30: 224 | J30: 53 | L30: n kw3 | M30: 249 | N30: 250 | O30: 252
B31: 29 | C31: 546 | D31: 584 | E31: 324 | G31: 29 | H31: 31 | I31: 225 | J31: 54 | L31: n kw4 | M31: 250 | N31: 250 | O31: 248
B32: 30 | C32: 38 | D32: 485 | E32: 316 | G32: 30 | H32: 31 | I32: 227 | J32: 56 | M32: =SUM(M28:M31) -> 1000 | N32: =SUM(N28:N31) -> 1000 | O32: =SUM(O28:O31) -> 1000
B33: 31 | C33: 441 | D33: 652 | E33: 987 | G33: 31 | H33: 32 | I33: 230 | J33: 58
B34: 32 | C34: 76 | D34: 195 | E34: 493 | G34: 32 | H34: 34 | I34: 230 | J34: 58 | L34: reguła 3 sigm | M34: =H2 -> r. jednostajny (A) | N34: =I2 -> r. normalny (B) | O34: =J2 -> r. (A) lub (B)
B35: 33 | C35: 808 | D35: 589 | E35: 538 | G35: 33 | H35: 36 | I35: 232 | J35: 59 | L35: E(x) + 1 S(x) | M35: =M$3+1*M$5 -> 789.5885892 | N35: =N$3+1*N$5 -> 657.7235641 | O35: =O$3+1*O$5 -> 720.4899865
B36: 34 | C36: 875 | D36: 330 | E36: 455 | G36: 34 | H36: 36 | I36: 234 | J36: 60 | L36: E(x) - 1 S(x) | M36: =M$3-1*M$5 -> 209.7794108 | N36: =N$3-1*N$5 -> 355.1764359 | O36: =O$3-1*O$5 -> 262.5120135
B37: 35 | C37: 65 | D37: 572 | E37: 926 | G37: 35 | H37: 37 | I37: 236 | J37: 61 | L37: n (683) | M37: =COUNTIFS(C$3:C$1002,"<="&M35,C$3:C$1002,">="&M36) -> 562 | N37: =COUNTIFS(D$3:D$1002,"<="&N35,D$3:D$1002,">="&N36) -> 694 | O37: =COUNTIFS(E$3:E$1002,"<="&O35,E$3:E$1002,">="&O36) -> 684
B38: 36 | C38: 408 | D38: 779 | E38: 524 | G38: 36 | H38: 38 | I38: 236 | J38: 63 | M38: =M$2 -> r. jednostajny (A) | N38: =N$2 -> r. normalny (B) | O38: =O$2 -> r. jed. lub r.nor.
B39: 37 | C39: 802 | D39: 625 | E39: 594 | G39: 37 | H39: 38 | I39: 239 | J39: 65 | L39: E(x) + 2 S(x) | M39: =M$3+2*M$5 -> 1079.493178 | N39: =N$3+2*N$5 -> 808.9971282 | O39: =O$3+2*O$5 -> 949.4789731
B40: 38 | C40: 60 | D40: 299 | E40: 403 | G40: 38 | H40: 38 | I40: 240 | J40: 68 | L40: E(x) - 2 S(x) | M40: =M$3-2*M$5 -> -80.12517832 | N40: =N$3-2*N$5 -> 203.9028718 | O40: =O$3-2*O$5 -> 33.52302693
B41: 39 | C41: 224 | D41: 451 | E41: 294 | G41: 39 | H41: 41 | I41: 241 | J41: 69 | L41: n (955) | M41: =COUNTIFS(C$3:C$1002,"<="&M39,C$3:C$1002,">="&M40) -> 1000 | N41: =COUNTIFS(D$3:D$1002,"<="&N39,D$3:D$1002,">="&N40) -> 946 | O41: =COUNTIFS(E$3:E$1002,"<="&O39,E$3:E$1002,">="&O40) -> 954
B42: 40 | C42: 20 | D42: 666 | E42: 513 | G42: 40 | H42: 42 | I42: 241 | J42: 69 | M42: =M$2 -> r. jednostajny (A) | N42: =N$2 -> r. normalny (B) | O42: =O$2 -> r. jed. lub r.nor.
B43: 41 | C43: 566 | D43: 548 | E43: 636 | G43: 41 | H43: 46 | I43: 241 | J43: 71 | L43: E(x) + 3 S(x) | M43: =M$3+3*M$5 -> 1369.397767 | N43: =N$3+3*N$5 -> 960.2706923 | O43: =O$3+3*O$5 -> 1178.46796
B44: 42 | C44: 144 | D44: 617 | E44: 366 | G44: 42 | H44: 47 | I44: 244 | J44: 73 | L44: E(x) - 3 S(x) | M44: =M$3-3*M$5 -> -370.0297675 | N44: =N$3-3*N$5 -> 52.62930774 | O44: =O$3-3*O$5 -> -195.4659596
B45: 43 | C45: 503 | D45: 296 | E45: 332 | G45: 43 | H45: 48 | I45: 245 | J45: 83 | L45: n (997) | M45: =COUNTIFS(C$3:C$1002,"<="&M43,C$3:C$1002,">="&M44) -> 1000 | N45: =COUNTIFS(D$3:D$1002,"<="&N43,D$3:D$1002,">="&N44) -> 997 | O45: =COUNTIFS(E$3:E$1002,"<="&O43,E$3:E$1002,">="&O44) -> 1000
B46: 44 | C46: 252 | D46: 381 | E46: 406 | G46: 44 | H46: 50 | I46: 246 | J46: 87
B47: 45 | C47: 931 | D47: 601 | E47: 12 | G47: 45 | H47: 50 | I47: 247 | J47: 87
B48: 46 | C48: 166 | D48: 236 | E48: 525 | G48: 46 | H48: 51 | I48: 248 | J48: 89
B49: 47 | C49: 542 | D49: 428 | E49: 313 | G49: 47 | H49: 51 | I49: 248 | J49: 92
B50: 48 | C50: 651 | D50: 575 | E50: 120 | G50: 48 | H50: 52 | I50: 248 | J50: 92
B51: 49 | C51: 328 | D51: 670 | E51: 982 | G51: 49 | H51: 52 | I51: 249 | J51: 92
B52: 50 | C52: 776 | D52: 598 | E52: 473 | G52: 50 | H52: 53 | I52: 249 | J52: 96
B53: 51 | C53: 266 | D53: 698 | E53: 68 | G53: 51 | H53: 55 | I53: 251 | J53: 100
B54: 52 | C54: 902 | D54: 563 | E54: 404 | G54: 52 | H54: 57 | I54: 258 | J54: 101
B55: 53 | C55: 722 | D55: 407 | E55: 689 | G55: 53 | H55: 58 | I55: 259 | J55: 103
B56: 54 | C56: 236 | D56: 393 | E56: 297 | G56: 54 | H56: 59 | I56: 260 | J56: 104
B57: 55 | C57: 741 | D57: 811 | E57: 426 | G57: 55 | H57: 60 | I57: 261 | J57: 105
B58: 56 | C58: 367 | D58: 513 | E58: 713 | G58: 56 | H58: 60 | I58: 261 | J58: 107
B59: 57 | C59: 833 | D59: 528 | E59: 543 | G59: 57 | H59: 61 | I59: 264 | J59: 107
B60: 58 | C60: 24 | D60: 510 | E60: 680 | G60: 58 | H60: 62 | I60: 265 | J60: 108
B61: 59 | C61: 449 | D61: 463 | E61: 913 | G61: 59 | H61: 64 | I61: 267 | J61: 110
B62: 60 | C62: 444 | D62: 248 | E62: 379 | G62: 60 | H62: 64 | I62: 267 | J62: 113
B63: 61 | C63: 148 | D63: 835 | E63: 470 | G63: 61 | H63: 65 | I63: 270 | J63: 114
B64: 62 | C64: 607 | D64: 239 | E64: 339 | G64: 62 | H64: 66 | I64: 271 | J64: 115
B65: 63 | C65: 565 | D65: 556 | E65: 564 | G65: 63 | H65: 69 | I65: 273 | J65: 117
B66: 64 | C66: 537 | D66: 483 | E66: 780 | G66: 64 | H66: 69 | I66: 274 | J66: 119
B67: 65 | C67: 926 | D67: 636 | E67: 933 | G67: 65 | H67: 69 | I67: 276 | J67: 120
B68: 66 | C68: =ROUND(RAND()*1000,0) -> 918 | D68: =ROUND(_xlfn.NORM.INV(RAND(),500,150),0) -> 511 | E68: =IF(RAND()<=0.5,ROUND(RAND()*1000,0),ROUND(_xlfn.NORM.INV(RAND(),500,150),0)) -> 619 | G68: 66 | H68: =SMALL(C$3:C$1002,$G68) -> 69 | I68: =SMALL(D$3:D$1002,$G68) -> 278 | J68: 120
B69: 67 | C69: 263 | D69: 507 | E69: 103 | G69: 67 | H69: 72 | I69: 280 | J69: 123
B70: 68 | C70: 268 | D70: 365 | E70: 572 | G70: 68 | H70: 73 | I70: 282 | J70: 125
B71: 69 | C71: 941 | D71: 578 | E71: 464 | G71: 69 | H71: 74 | I71: 283 | J71: 126
B72: 70 | C72: 25 | D72: 670 | E72: 559 | G72: 70 | H72: 75 | I72: 285 | J72: 128
B73: 71 | C73: 295 | D73: 397 | E73: 453 | G73: 71 | H73: 75 | I73: 285 | J73: 132
B74: 72 | C74: 878 | D74: 557 | E74: 315 | G74: 72 | H74: 76 | I74: 287 | J74: 135
B75: 73 | C75: 651 | D75: 385 | E75: 296 | G75: 73 | H75: 76 | I75: 287 | J75: 139
B76: 74 | C76: 706 | D76: 402 | E76: 457 | G76: 74 | H76: 77 | I76: 288 | J76: 140
B77: 75 | C77: 88 | D77: 321 | E77: 608 | G77: 75 | H77: 77 | I77: 289 | J77: 142
B78: 76 | C78: 60 | D78: 585 | E78: 847 | G78: 76 | H78: 77 | I78: 292 | J78: 145
B79: 77 | C79: 556 | D79: 385 | E79: 58 | G79: 77 | H79: 79 | I79: 293 | J79: 146
B80: 78 | C80: 996 | D80: 529 | E80: 636 | G80: 78 | H80: 79 | I80: 294 | J80: 146
B81: 79 | C81: 244 | D81: 651 | E81: 303 | G81: 79 | H81: 82 | I81: 296 | J81: 149
B82: 80 | C82: 379 | D82: 600 | E82: 488 | G82: 80 | H82: 82 | I82: 297 | J82: 149
B83: 81 | C83: 975 | D83: 476 | E83: 658 | G83: 81 | H83: 83 | I83: 297 | J83: 152
B84: 82 | C84: 160 | D84: 390 | E84: 201 | G84: 82 | H84: 83 | I84: 298 | J84: 154
B85: 83 | C85: 255 | D85: 651 | E85: 695 | G85: 83 | H85: 83 | I85: 299 | J85: 156
B86: 84 | C86: 111 | D86: 699 | E86: 501 | G86: 84 | H86: 85 | I86: 301 | J86: 157
B87: 85 | C87: 89 | D87: 467 | E87: 245 | G87: 85 | H87: 85 | I87: 302 | J87: 158
B88: 86 | C88: 452 | D88: 689 | E88: 367 | G88: 86 | H88: 85 | I88: 302 | J88: 159
B89: 87 | C89: 192 | D89: 416 | E89: 510 | G89: 87 | H89: 86 | I89: 304 | J89: 162
B90: 88 | C90: 261 | D90: 709 | E90: 581 | G90: 88 | H90: 86 | I90: 305 | J90: 164
B91: 89 | C91: 868 | D91: 230 | E91: 187 | G91: 89 | H91: 88 | I91: 306 | J91: 164
B92: 90 | C92: 680 | D92: 520 | E92: 396 | G92: 90 | H92: 89 | I92: 307 | J92: 164
B93: 91 | C93: 813 | D93: 498 | E93: 845 | G93: 91 | H93: 89 | I93: 307 | J93: 164
B94: 92 | C94: 439 | D94: 576 | E94: 429 | G94: 92 | H94: 90 | I94: 308 | J94: 165
B95: 93 | C95: 781 | D95: 331 | E95: 586 | G95: 93 | H95: 91 | I95: 308 | J95: 165
B96: 94 | C96: 372 | D96: 398 | E96: 623 | G96: 94 | H96: 93 | I96: 310 | J96: 169
B97: 95 | C97: 996 | D97: 671 | E97: 459 | G97: 95 | H97: 93 | I97: 311 | J97: 169
B98: 96 | C98: 595 | D98: 544 | E98: 559 | G98: 96 | H98: 94 | I98: 316 | J98: 171
B99: 97 | C99: 959 | D99: 457 | E99: 6 | G99: 97 | H99: 95 | I99: 317 | J99: 171
B100: 98 | C100: 496 | D100: 439 | E100: 214 | G100: 98 | H100: 95 | I100: 317 | J100: 172
B101: 99 | C101: 984 | D101: 474 | E101: 273 | G101: 99 | H101: 95 | I101: 317 | J101: 176
B102: 100 | C102: 737 | D102: 598 | E102: 933 | G102: 100 | H102: 97 | I102: 318 | J102: 176
B103: 101 | C103: 215 | D103: 464 | E103: 51 | G103: 101 | H103: 97 | I103: 318 | J103: 178
B104: 102 | C104: 234 | D104: 496 | E104: 795 | G104: 102 | H104: 97 | I104: 318 | J104: 179
B105: 103 | C105: 686 | D105: 501 | E105: 799 | G105: 103 | H105: 100 | I105: 318 | J105: 182
B106: 104 | C106: 868 | D106: 298 | E106: 694 | G106: 104 | H106: 100 | I106: 318 | J106: 183
B107: 105 | C107: 397 | D107: 565 | E107: 626 | G107: 105 | H107: 100 | I107: 319 | J107: 183
B108: 106 | C108: 854 | D108: 669 | E108: 341 | G108: 106 | H108: 100 | I108: 321 | J108: 185
B109: 107 | C109: 439 | D109: 572 | E109: 289 | G109: 107 | H109: 103 | I109: 321 | J109: 186
B110: 108 | C110: 893 | D110: 245 | E110: 705 | G110: 108 | H110: 104 | I110: 322 | J110: 186
B111: 109 | C111: 808 | D111: 528 | E111: 9 | G111: 109 | H111: 104 | I111: 322 | J111: 186
B112: 110 | C112: 759 | D112: 328 | E112: 73 | G112: 110 | H112: 108 | I112: 322 | J112: 186
B113: 111 | C113: 399 | D113: 624 | E113: 742 | G113: 111 | H113: 111 | I113: 324 | J113: 187
B114: 112 | C114: 202 | D114: 465 | E114: 40 | G114: 112 | H114: 112 | I114: 324 | J114: 193
B115: 113 | C115: 844 | D115: 535 | E115: 60 | G115: 113 | H115: 112 | I115: 324 | J115: 196
B116: 114 | C116: 137 | D116: 631 | E116: 969 | G116: 114 | H116: 115 | I116: 324 | J116: 198
B117: 115 | C117: 229 | D117: 8 | E117: 876 | G117: 115 | H117: 115 | I117: 324 | J117: 200
B118: 116 | C118: 232 | D118: 497 | E118: 169 | G118: 116 | H118: 117 | I118: 326 | J118: 201
B119: 117 | C119: 396 | D119: 526 | E119: 457 | G119: 117 | H119: 117 | I119: 328 | J119: 201
B120: 118 | C120: 631 | D120: 560 | E120: 989 | G120: 118 | H120: 117 | I120: 328 | J120: 203
B121: 119 | C121: 658 | D121: 575 | E121: 513 | G121: 119 | H121: 118 | I121: 329 | J121: 205
B122: 120 | C122: 467 | D122: 525 | E122: 271 | G122: 120 | H122: 119 | I122: 330 | J122: 207
B123: 121 | C123: 693 | D123: 436 | E123: 454 | G123: 121 | H123: 120 | I123: 330 | J123: 207
B124: 122 | C124: 630 | D124: 445 | E124: 201 | G124: 122 | H124: 121 | I124: 331 | J124: 207
B125: 123 | C125: 224 | D125: 538 | E125: 555 | G125: 123 | H125: 127 | I125: 331 | J125: 211
B126: 124 | C126: 218 | D126: 469 | E126: 863 | G126: 124 | H126: 128 | I126: 332 | J126: 211
B127: 125 | C127: 569 | D127: 666 | E127: 961 | G127: 125 | H127: 128 | I127: 332 | J127: 212
B128: 126 | C128: 588 | D128: 385 | E128: 538 | G128: 126 | H128: 129 | I128: 333 | J128: 213
B129: 127 | C129: 220 | D129: 674 | E129: 301 | G129: 127 | H129: 129 | I129: 333 | J129: 214
B130: 128 | C130: 0 | D130: 480 | E130: 203 | G130: 128 | H130: 130 | I130: 334 | J130: 214
B131: 129 | C131: 4 | D131: 667 | E131: 380 | G131: 129 | H131: 130 | I131: 335 | J131: 215
B132: 130 | C132: =ROUND(RAND()*1000,0) -> 402 | D132: =ROUND(_xlfn.NORM.INV(RAND(),500,150),0) -> 195 | E132: =IF(RAND()<=0.5,ROUND(RAND()*1000,0),ROUND(_xlfn.NORM.INV(RAND(),500,150),0)) -> 590 | G132: 130 | H132: =SMALL(C$3:C$1002,$G132) -> 132 | I132: =SMALL(D$3:D$1002,$G132) -> 336 | J132: 218
B133: 131 | C133: 722 | D133: 457 | E133: 690 | G133: 131 | H133: 133 | I133: 338 | J133: 219
B134: 132 | C134: 167 | D134: 503 | E134: 547 | G134: 132 | H134: 135 | I134: 338 | J134: 219
B135: 133 | C135: 83 | D135: 781 | E135: 654 | G135: 133 | H135: 137 | I135: 338 | J135: 220
B136: 134 | C136: 200 | D136: 322 | E136: 525 | G136: 134 | H136: 137 | I136: 339 | J136: 220
B137: 135 | C137: 590 | D137: 565 | E137: 366 | G137: 135 | H137: 137 | I137: 340 | J137: 223
B138: 136 | C138: 769 | D138: 430 | E138: 966 | G138: 136 | H138: 138 | I138: 340 | J138: 225
B139: 137 | C139: 95 | D139: 832 | E139: 353 | G139: 137 | H139: 138 | I139: 342 | J139: 226
B140: 138 | C140: 267 | D140: 510 | E140: 596 | G140: 138 | H140: 139 | I140: 343 | J140: 226
B141: 139 | C141: 762 | D141: 519 | E141: 496 | G141: 139 | H141: 141 | I141: 344 | J141: 227
B142: 140 | C142: 161 | D142: 582 | E142: 430 | G142: 140 | H142: 142 | I142: 346 | J142: 228
B143: 141 | C143: 64 | D143: 716 | E143: 517 | G143: 141 | H143: 143 | I143: 348 | J143: 231
B144: 142 | C144: 258 | D144: 297 | E144: 484 | G144: 142 | H144: 144 | I144: 348 | J144: 233
B145: 143 | C145: 790 | D145: 521 | E145: 383 | G145: 143 | H145: 144 | I145: 348 | J145: 233
B146: 144 | C146: 860 | D146: 368 | E146: 165 | G146: 144 | H146: 148 | I146: 348 | J146: 234
B147: 145 | C147: 463 | D147: 774 | E147: 434 | G147: 145 | H147: 148 | I147: 349 | J147: 234
B148: 146 | C148: 901 | D148: 278 | E148: 625 | G148: 146 | H148: 148 | I148: 349 | J148: 234
B149: 147 | C149: 431 | D149: 446 | E149: 343 | G149: 147 | H149: 152 | I149: 350 | J149: 236
B150: 148 | C150: 817 | D150: 555 | E150: 450 | G150: 148 | H150: 153 | I150: 351 | J150: 236
B151: 149 | C151: 908 | D151: 464 | E151: 283 | G151: 149 | H151: 153 | I151: 352 | J151: 238
B152: 150 | C152: 160 | D152: 596 | E152: 484 | G152: 150 | H152: 154 | I152: 352 | J152: 238
B153: 151 | C153: 103 | D153: 438 | E153: 407 | G153: 151 | H153: 154 | I153: 352 | J153: 239
B154: 152 | C154: 781 | D154: 392 | E154: 347 | G154: 152 | H154: 156 | I154: 355 | J154: 241
B155: 153 | C155: 179 | D155: 370 | E155: 334 | G155: 153 | H155: 158 | I155: 356 | J155: 241
B156: 154 | C156: 395 | D156: 426 | E156: 312 | G156: 154 | H156: 159 | I156: 356 | J156: 245
B157: 155 | C157: 517 | D157: 416 | E157: 414 | G157: 155 | H157: 159 | I157: 357 | J157: 248
B158: 156 | C158: 374 | D158: 502 | E158: 515 | G158: 156 | H158: 159 | I158: 358 | J158: 248
B159: 157 | C159: 154 | D159: 607 | E159: 439 | G159: 157 | H159: 159 | I159: 359 | J159: 250
B160: 158 | C160: 877 | D160: 680 | E160: 575 | G160: 158 | H160: 160 | I160: 359 | J160: 250
B161: 159 | C161: 201 | D161: 355 | E161: 479 | G161: 159 | H161: 160 | I161: 360 | J161: 250
B162: 160 | C162: 550 | D162: 589 | E162: 114 | G162: 160 | H162: 160 | I162: 361 | J162: 251
B163: 161 | C163: 510 | D163: 411 | E163: 484 | G163: 161 | H163: 161 | I163: 361 | J163: 252
B164: 162 | C164: 573 | D164: 209 | E164: 911 | G164: 162 | H164: 161 | I164: 362 | J164: 263
B165: 163 | C165: 513 | D165: 598 | E165: 271 | G165: 163 | H165: 162 | I165: 362 | J165: 263
B166: 164 | C166: 545 | D166: 753 | E166: 548 | G166: 164 | H166: 164 | I166: 362 | J166: 266
B167: 165 | C167: 551 | D167: 610 | E167: 925 | G167: 165 | H167: 165 | I167: 362 | J167: 269
B168: 166 | C168: 97 | D168: 434 | E168: 42 | G168: 166 | H168: 165 | I168: 363 | J168: 270
B169: 167 | C169: 769 | D169: 486 | E169: 627 | G169: 167 | H169: 166 | I169: 363 | J169: 271
B170: 168 | C170: 37 | D170: 322 | E170: 776 | G170: 168 | H170: 167 | I170: 363 | J170: 271
B171: 169 | C171: 207 | D171: 645 | E171: 347 | G171: 169 | H171: 169 | I171: 365 | J171: 272
B172: 170 | C172: 998 | D172: 451 | E172: 389 | G172: 170 | H172: 171 | I172: 365 | J172: 272
B173: 171 | C173: 232 | D173: 502 | E173: 298 | G173: 171 | H173: 172 | I173: 366 | J173: 273
B174: 172 | C174: 941 | D174: 638 | E174: 981 | G174: 172 | H174: 172 | I174: 366 | J174: 273
B175: 173 | C175: 199 | D175: 529 | E175: 234 | G175: 173 | H175: 173 | I175: 366 | J175: 274
B176: 174 | C176: 375 | D176: 607 | E176: 380 | G176: 174 | H176: 174 | I176: 366 | J176: 276
B177: 175 | C177: 211 | D177: 537 | E177: 496 | G177: 175 | H177: 174 | I177: 366 | J177: 276
B178: 176 | C178: 461 | D178: 560 | E178: 494 | G178: 176 | H178: 175 | I178: 367 | J178: 277
B179: 177 | C179: 383 | D179: 548 | E179: 183 | G179: 177 | H179: 175 | I179: 368 | J179: 278
B180: 178 | C180: 165 | D180: 264 | E180: 794 | G180: 178 | H180: 176 | I180: 368 | J180: 283
B181: 179 | C181: 906 | D181: 703 | E181: 302 | G181: 179 | H181: 177 | I181: 368 | J181: 283
B182: 180 | C182: 863 | D182: 597 | E182: 472 | G182: 180 | H182: 177 | I182: 368 | J182: 285
B183: 181 | C183: 949 | D183: 586 | E183: 319 | G183: 181 | H183: 179 | I183: 368 | J183: 285
B184: 182 | C184: 159 | D184: 550 | E184: 308 | G184: 182 | H184: 181 | I184: 370 | J184: 288
B185: 183 | C185: 435 | D185: 728 | E185: 585 | G185: 183 | H185: 182 | I185: 370 | J185: 289
B186: 184 | C186: 679 | D186: 670 | E186: 274 | G186: 184 | H186: 183 | I186: 370 | J186: 289
B187: 185 | C187: 469 | D187: 375 | E187: 178 | G187: 185 | H187: 187 | I187: 372 | J187: 290
B188: 186 | C188: 283 | D188: 780 | E188: 503 | G188: 186 | H188: 189 | I188: 372 | J188: 292
B189: 187 | C189: 841 | D189: 712 | E189: 567 | G189: 187 | H189: 190 | I189: 373 | J189: 293
B190: 188 | C190: 214 | D190: 511 | E190: 606 | G190: 188 | H190: 190 | I190: 374 | J190: 293
B191: 189 | C191: 777 | D191: 442 | E191: 560 | G191: 189 | H191: 192 | I191: 375 | J191: 293
B192: 190 | C192: 555 | D192: 616 | E192: 346 | G192: 190 | H192: 192 | I192: 376 | J192: 294
B193: 191 | C193: 869 | D193: 310 | E193: 418 | G193: 191 | H193: 194 | I193: 376 | J193: 294
B194: 192 | C194: 337 | D194: 394 | E194: 524 | G194: 192 | H194: 195 | I194: 376 | J194: 296
B195: 193 | C195: 569 | D195: 460 | E195: 408 | G195: 193 | H195: 195 | I195: 377 | J195: 296
B196: 194 | C196: =ROUND(RAND()*1000,0) -> 765 | D196: =ROUND(_xlfn.NORM.INV(RAND(),500,150),0) -> 520 | E196: =IF(RAND()<=0.5,ROUND(RAND()*1000,0),ROUND(_xlfn.NORM.INV(RAND(),500,150),0)) -> 146 | G196: 194 | H196: =SMALL(C$3:C$1002,$G196) -> 196 | I196: =SMALL(D$3:D$1002,$G196) -> 377 | J196: 296
B197: 195 | C197: 838 | D197: 497 | E197: 640 | G197: 195 | H197: 196 | I197: 378 | J197: 296
B198: 196 | C198: 536 | D198: 466 | E198: 83 | G198: 196 | H198: 198 | I198: 378 | J198: 296
B199: 197 | C199: 737 | D199: 424 | E199: 578 | G199: 197 | H199: 199 | I199: 380 | J199: 297
B200: 198 | C200: 796 | D200: 709 | E200: 626 | G200: 198 | H200: 200 | I200: 381 | J200: 298
B201: 199 | C201: 527 | D201: 469 | E201: 513 | G201: 199 | H201: 201 | I201: 381 | J201: 298
... 801 more rows
